Cogmind - Beta 15 @@@ ROGUE MODE // 2025.05.09 @ 01:47:28 Player: Florist Result: Destroyed by Y-45 Defender with Beam Rifle Performance ------------- Evolutions (1) 500 Regions Visited (2) 400 Robots Destroyed (35) 175 Value Destroyed (652) 652 Prototype IDs (1) 20 Alien Tech Used (0) 0 Bonus (0) 0 TOTAL SCORE: 1747 Bonus ------- None Cogmind --------- Core Integrity 0/400 Matter 295/300 Energy 100/100 System Corruption 7% Temperature Cool (9) Movement Core (100) Ox1 Location -9/Materials Parts ------- > --- POWER (1) -------- (None) > --- PROPULSION (3) --- (None) > --- UTILITY (3) ------ Hacking Suite > --- WEAPON (2) ------- Maul Maul > --- INVENTORY (5) ---- VTOL Module Hacking Suite Mining Claw Peak State ------------ > --- POWER ------------ Light Ion Engine > --- PROPULSION ------- Improved Flight Unit Improved Flight Unit Improved Flight Unit > --- UTILITY ---------- Sensor Array Signal Interpreter Hacking Suite > --- WEAPON ----------- Maul Mining Claw > --- INVENTORY -------- VTOL Module VTOL Module VTOL Module VTOL Module Maul [Rating: 19] Favorites ----------- Power Ion Engine Engine Ion Engine Propulsion Improved Flight Unit Treads Light Treads Flight Unit Improved Flight Unit Utility Hacking Suite Device Sensor Array Storage Small Storage Unit Processor Signal Interpreter Hackware Hacking Suite Weapon Maul Ballistic Gun Light Assault Rifle Impact Weapon Maul Slashing Weapon Mining Claw Build | -11 -10 -9 ------- Run | Yrd Mat Mat Slots Evolved 2 | . . 2 Power . | . . . Propulsion 1 | . . 1 Utility 1 | . . 1 Weapon . | . . . Parts Attached 25 | 6 9 10 Power 5 | 1 1 3 Engine 5 | 1 1 3 Core . | . . . Reactor . | . . . Propulsion 9 | 2 3 4 Treads 2 | 2 . . Leg . | . . . Wheel . | . . . Hover . | . . . Flight 7 | . 3 4 Utility 6 | 1 2 3 Device 2 | . 1 1 Storage 1 | 1 . . Processor 2 | . 1 1 Hackware 1 | . . 1 Protection . | . . . Artifact . | . . . Weapon 5 | 2 3 . Energy Gun . | . . . Energy Cannon . | . . . Ballistic Gun 2 | 2 . . Ballistic Cannon . | . . . Launcher . | . . . Special Weapon . | . . . Impact Weapon 2 | . 2 . Slashing Weapon 1 | . 1 . Piercing Weapon . | . . . Special Melee Weapon . | . . . Unidentified Prototypes 1 | . 1 . Parts Lost 12 | . . 12 Power 3 | . . 3 Propulsion 5 | . . 5 Utility 3 | . . 3 Weapon 1 | . . 1 Highest Loss Streak 8 | . . 8 To Critical Strikes . | . . . Average Backups 4 | 1 4 4 Power . | . . . Propulsion 3 | . 2 3 Utility . | . . . Weapon 1 | . 1 1 Tool/Special . | . . . Unused Backups 9 | 1 4 4 Power . | . . . Propulsion 5 | . 3 2 Utility 1 | . . 1 Weapon 3 | 1 1 1 Tool/Special . | . . . Average Slot Usage (%) 83 | . 69 91 Engine 9 | . 14 7 Treads 4 | . 12 . Flight 26 | . 15 31 Device 7 | . 1 9 Storage 1 | . 3 . Processor 7 | . 1 10 Hackware 6 | . . 10 Ballistic Gun 2 | . 7 . Impact Weapon 10 | . 10 11 Slashing Weapon 6 | . . 10 Peak Build Rating 19 | 6 12 19 Average Rating 13 | 4 8 16 On Entrance 6 | . 6 12 Naked Turns . | . . . Heaviest Build 12 | 12 12 11 Greatest Support 40 | 40 40 15 Greatest Overweight (x) 3 | . 3 . Average Overweight (x) . | . . . Largest Inventory Capacity 8 | 8 8 5 Average Capacity 5 | 6 5 5 Most Carried 5 | 3 5 5 Average Carried 4 | 1 4 4 Final Capacity 8 | 8 5 5 Final Carried 4 | 2 4 3 Class Distribution -------------------- 71% | Mutant 28% | Sprinter Dominant Class ---------------- Mutant | -10/Materials Mutant | -9/Materials Resources | -11 -10 -9 ----------- Run | Yrd Mat Mat Matter Collected 495 | 214 164 117 Remotely . | . . . Salvage Created 832 | . 256 576 Parts 42 | . 15 27 Haulers Intercepted . | . . . Recyclers Shooed . | . . . Parts Field Recycled . | . . . Retrieved Matter . | . . . Parts Self-Destructed . | . . . Prevented . | . . . Kills | -11 -10 -9 ------- Run | Yrd Mat Mat Combat Hostiles Destroyed 23 | . 5 18 Melee 13 | . 2 11 Classes Destroyed 7 | . 5 2 Recycler 2 | . 1 1 Operator 5 | . 2 3 Watcher 5 | . 2 3 Swarmer 14 | . 3 11 Grunt 6 | . 2 4 Brawler 1 | . . 1 Sentry 2 | . . 2 Best Kill Streak 5 | . 3 5 Combat Bots Only 4 | . 3 4 Max Kills in Single Turn 1 | . 1 1 Gunslinging . | . . . Exploded . | . . . Melee 1 | . 1 1 Uniques/NPCs Destroyed . | . . . Combat | -11 -10 -9 -------- Run | Yrd Mat Mat Hostile Shots Fired 149 | . 16 133 Missed 49 | . 5 44 Hits 100 | . 11 89 Projectile 100 | . 11 89 Damage Taken 1132 | . 91 1041 Core 462 | . 52 410 Absorbed by Shields . | . . . Core Remaining (%) 89 | 100 79 . Volleys Fired . | . . . Largest . | . . . Hottest . | . . . Shots Fired . | . . . Gun . | . . . Cannon . | . . . Launcher . | . . . Special . | . . . Kinetic . | . . . Thermal . | . . . Explosive . | . . . Electromagnetic . | . . . Robot Hit Streak . | . . . Robot Miss Streak . | . . . Penetration Max . | . . . Secondary Targets . | . . . Shots Hit Robots 67 | . 11 56 Core Hits 17 | . 4 13 Critical Kills 3 | . 1 2 Critical Parts Destroyed 8 | . 4 4 Critical Strikes 12 | . 5 7 Smash 12 | . 5 7 Melee Attacks 107 | . 19 88 Impact 86 | . 19 67 Slashing 21 | . . 21 Piercing . | . . . Sneak Attacks 5 | . 2 3 Combat Hostiles . | . . . Follow-up Attacks 14 | . . 14 Damage Inflicted 2593 | . 531 2062 Guns . | . . . Cannons . | . . . Explosions . | . . . Melee 2593 | . 531 2062 Ramming . | . . . Kinetic . | . . . Thermal . | . . . Explosive . | . . . Electromagnetic . | . . . Impact 2246 | . 531 1715 Slashing 347 | . . 347 Piercing . | . . . Highest Corruption 7 | . . 7 Average Corruption 7 | . . 7 Corruption Purged . | . . . Corruption Blocked . | . . . Effects 1 | . . 1 Message Errors 1 | . . 1 Overload Shots . | . . . Overflow Damage 753 | . 268 485 Projectiles . | . . . Explosions . | . . . Melee 753 | . 268 485 Knockbacks 10 | . 4 6 Impact 10 | . 4 6 Kinetic . | . . . Secondary . | . . . Self-Inflicted Damage . | . . . Shots . | . . . Rammed . | . . . Targets Rammed . | . . . Kicked . | . . . Crushed . | . . . Highest Temperature . | . . . Average Temperature . | . . . Received Heat Transfer 225 | . 12 213 Siege Activations . | . . . Martial Activations . | . . . Shielding Activations . | . . . Robots Disrupted . | . . . Combat Hostiles . | . . . Robots Corrupted 17 | . 6 11 Combat Hostiles 10 | . 3 7 Parts Fried 13 | . 4 9 Impact Corruptions 36 | . 13 23 Robots Melted . | . . . Combat Hostiles . | . . . Parts Melted . | . . . Heat Transferred . | . . . Parts Sabotaged . | . . . Parts Stolen . | . . . Parts Stripped . | . . . Power Chain Reactions . | . . . Alert | -11 -10 -9 ------- Run | Yrd Mat Mat Maximum Alert Level 1 | . . 1 Low Security (%) 88 | 100 100 80 Level 1 11 | . . 19 Level 2 . | . . . Level 3 . | . . . Level 4 . | . . . Level 5 . | . . . High Security . | . . . Max Security . | . . . Peak Influence 282 | . 134 282 Initial 50 | . . 50 Average 89 | . 52 119 Influence Increases 873 | . 245 628 Destroy 0b10 Robot/C 460 | . 100 360 Destroy 0b10 Robot/NC 60 | . 25 35 Destroy Leader 100 | . 24 76 Successful Hack 24 | . 21 3 Disable Machine 15 | . 15 . Destroy Structure 4 | . . 4 Partial Spotted 75 | . 15 60 Lose Combat Pursuer 135 | . 45 90 Influence Decreases 633 | . 126 507 Entered New Map 69 | . . 69 Time Decay 444 | . 126 318 Lost Part 120 | . . 120 Squads Dispatched 6 | . 2 4 Investigation 2 | . . 2 Extermination . | . . . Reinforcement 4 | . 2 2 Assault . | . . . Garrison . | . . . Intercept . | . . . Searches Triggered . | . . . Construction Impeded . | . . . Haulers Reinforced . | . . . Active Scanning Responses . | . . . Cargo Convoy Interrupts . | . . . Stealth | -11 -10 -9 --------- Run | Yrd Mat Mat Distress Signals 1 | . . 1 Communications Jammed . | . . . Distress Signals . | . . . Times Spotted 46 | . 12 34 Peak Tracking Total 7 | . 3 7 Tactical Retreats 8 | . 3 5 Traps | -11 -10 -9 ------- Run | Yrd Mat Mat Traps Triggered 2 | . . 2 Indirectly . | . . . Trap Hack Attempts . | . . . Triggered . | . . . Disarmed . | . . . Reprogrammed . | . . . Reused . | . . . Traps Extracted . | . . . Installed . | . . . Triggered . | . . . Machines | -11 -10 -9 ---------- Run | Yrd Mat Mat Machines Disabled 1 | . 1 . Max in Single Turn 1 | . 1 . Machines Repaired . | . . . Machines Dismantled . | . . . Machines Sabotaged . | . . . Overloaded Fab Kills . | . . . Hacking | -11 -10 -9 --------- Run | Yrd Mat Mat Machines Accessed 8 | . 4 4 Terminals 8 | . 4 4 Fabricators . | . . . Repair Stations . | . . . Recycling Units . | . . . Scanalyzers . | . . . Garrison Access . | . . . Total Hacks 20 | . 10 10 Successful 12 | . 7 5 Failed 8 | . 3 5 Catastrophic 1 | . 1 . Database Lockouts . | . . . Manual 16 | . 8 8 Terminals 20 | . 10 10 Fabricators . | . . . Repair Stations . | . . . Recycling Units . | . . . Scanalyzers . | . . . Garrison Access . | . . . Terminal Hacks 4 | . 3 1 Terminal Index 2 | . 1 1 Alert Level 1 | . 1 . Investigation Status 1 | . 1 . Fabricator Hacks . | . . . Repair Station Hacks . | . . . Recycling Unit Hacks . | . . . Scanalyzer . | . . . Garrison Access Hacks . | . . . Unauthorized Hacks 8 | . 4 4 Terminals 8 | . 4 4 Assimilate 1 | . . 1 Botnet 7 | . 4 3 Fabricators . | . . . Repair Stations . | . . . Recycling Units . | . . . Scanalyzers . | . . . Garrison Access . | . . . Data Cores Recovered . | . . . Used . | . . . Hacking Detections 7 | . 3 4 Full Trace Events 2 | . . 2 Feedback Events . | . . . Feedback Blocked . | . . . Robot Schematics Acquired . | . . . Robots Built . | . . . Authchips . | . . . Time . | . . . Total Robot Build Rating . | . . . Part Schematics Acquired . | . . . Parts Built . | . . . Authchips . | . . . Time . | . . . Total Part Build Rating . | . . . Parts Repaired . | . . . Time . | . . . Parts Recycled . | . . . Recycled Matter . | . . . Retrieved Matter . | . . . Retrieved Components . | . . . Parts Scanalyzed . | . . . Part Schematics Acquired . | . . . Parts Damaged . | . . . Bothacking | -11 -10 -9 ------------ Run | Yrd Mat Mat Used RIF Installer . | . . . Robots Hacked . | . . . Non-combat . | . . . Combat . | . . . Robot Hacks Applied . | . . . Relay Couplers Released . | . . . Fabnet Peak Effective % . | . . . Robots Rewired . | . . . Allies Hacked . | . . . Hacks Repelled . | . . . Allies | -11 -10 -9 -------- Run | Yrd Mat Mat Total Allies . | . . . Largest Group . | . . . Highest-Rated Group . | . . . Highest-Rated Ally . | . . . Total Orders . | . . . Ally Attacks . | . . . Total Damage . | . . . Kills . | . . . Allies Corrupted . | . . . Allies Melted . | . . . Intel | -11 -10 -9 ------- Run | Yrd Mat Mat Active Infowar (turns) 731 | . 59 672 Sensors 401 | . 59 342 Structural 330 | . . 330 Robot Analysis Total . | . . . Derelict Logs Recovered . | . . . Drone Launches . | . . . Drone Recoveries . | . . . Exploration | -11 -10 -9 ------------- Run | Yrd Mat Mat Turns Passed 1256 | 74 423 759 Spaces Moved 1498 | 42 495 961 Core 8 | 7 1 . Treads 131 | 35 96 . Legs . | . . . Wheels . | . . . Hover . | . . . Flight 1359 | . 398 961 Fastest Speed 30 | 50 37 30 Average Speed 45 | 141 62 32 Slowest Speed 200 | 160 200 34 Overloaded Moves . | . . . Propulsion Burnouts . | . . . Robots Hopped 2 | . . 2 Potential Cave-ins . | . . . Cave-ins Triggered 1 | . . 1 Exploration Rate (%) 46 | 4 67 67 Regions Visited 2 Branch Regions . Pre-discovered Areas . | . . . Known Exits Taken 1 | . 1 . Unknown Exits Taken 1 | 1 . . Scrap Searched . | . . . Spaces Dug 4 | . . 4 Terrain Destroyed 4 | . . 4 Melee 4 | . . 4 Projectile . | . . . AOE . | . . . Terrain Rammed . | . . . Walls Destroyed . | . . . Machines Disabled . | . . . Actions | -11 -10 -9 --------- Run | Yrd Mat Mat Total 1897 | 57 578 1262 Wait 209 | . 15 194 Move 1492 | 41 494 957 Hop 2 | . . 2 Pick Up 45 | 9 19 17 Fast Attach 1 | . 1 . Attach 24 | 6 7 11 Detach 1 | . 1 . Swap 7 | . 6 1 Drop 27 | 1 17 9 Fire . | . . . Melee 89 | . 18 71 Ram . | . . . Kick . | . . . Crush . | . . . Escape Stasis . | . . . Rewire . | . . . Trap . | . . . Miscellaneous . | . . . Route ------- -11/Scrapyard -10/Materials (discovered 3 exits: *Mat x2 / [*Min]) -9/Materials (discovered 2 exits: [*Mat] / [*Min]) History --------- Turn | Location | Event 3 | -11/Scrapyard | Discovered new exit (range 15) 75 | -11/Scrapyard | Entered Materials 310 | -10/Materials | Build established: Mutant 391 | -10/Materials | Discovered new exit (range 10) 426 | -10/Materials | Discovered new exit (range 9) 468 | -10/Materials | Discovered new exit (range 14) 490 | -10/Materials | Identified exit to Materials 498 | -10/Materials | Entered another Materials area 498 | -9/Materials | Evolved 2 slots: Propulsion x1, Utility x1 913 | -9/Materials | Discovered new exit (range 10) 1092 | -9/Materials | Core integrity fell below 50% 1107 | -9/Materials | Discovered new exit (range 7) 1206 | -9/Materials | Crushed by falling debris 1232 | -9/Materials | Core integrity fell below 20% 1257 | -9/Materials | Destroyed by Y-45 Defender with Beam Rifle Last Messages --------------- 01213_ Y-45 Defender suffers critical hit (Smash). 01213_ Mining Claw follow-up attack on Y-45 Defender. 01216_ Structural Scanner destroyed. 01217_ Mining Claw follow-up attack on Y-45 Defender. 01219_ Imp. Flight Unit destroyed. 01219_ Mining Claw destroyed. 01220_ Destroyed Heat Sink. 01220_ Y-45 Defender system corrupted by crushing effect. 01226_ Destroyed Heat Sink. 01226_ Y-45 Defender system corrupted by crushing effect. 01228_ Integration Channel disabled. 01234_ Ion Engine destroyed. 01237_ Flight Unit destroyed. 01239_ Maul follow-up attack on Y-45 Defender. 01239_ Y-45 Defender destroyed. 01243_ B-36 Bruiser suffers critical hit (Smash). 01243_ B-36 Bruiser destroyed. 01249_ Maul follow-up attack on Y-45 Defender. 01251_ VTOL Module destroyed. 01256_ NSJTFNENU2&M9PKN2LA#AL0LXWD0E NB2ZL| Map ----- +----------------------------------------------------+ | """" # """ # ??????????????????? | | """" # # ??????????????????? | | # # ??????????????????? | | ########??????????????????? | | ??????????????????? | | ########## ??????????????????? | | ########## ???????????????????? | | #############+#?????????????????????? | | ########### ?????????????????????? | | # ##???????????????????????????? | | # # ##???????????????????????????? | | # # ##???????????????????????????? | | + + ##???????????######??????????? | | # # ##???????????######??????????? | | # # ##????????## ##??????????? | | ##+##########????????## " ##??????????? | | ######???????? # """ ##??????????? | | ##???????????? # """ ##??????????? | | """""" ##???????????? # """ ##??????????? | | """""" ##???????????? # "" ###?????????? | | """""" ##???????????? # """ ####????????? | | """""" ##???????????? # "" ;###########? | | """""" ##???????????? # " ############? | | ##???????????? # " ## ##? | | ###########????? ? # ## """"" ##? | | ###########?????####?##*%@ ## """"" ##? | | ##?????## ##Y##### """"" ##? | | ######## ##?????## g% # """"" ##? | | # ##?????## # """"" ##? | | # ##??????# ##### + """"" ##? | | # ###?????##+####### # """"" ##? | | # ###### ? ##??## # ### | | + ##### ??????? ##+######### | | # + ????????## ## # | | # ##### ?????????## ## ][] # | | # ##### ????????### ## ][] # | | ######## ##### ###### ##= ]] # | | #== #######+####### #% # | | ????? # % # ! # | | ????? # =T ] T%+ ! # | | ????? # #######+## #### #% # | | ????? #### #### % ##+##### ####+####### | | ?????##### #### # # # ##### | | ???????? + !! # + + ##??? | | ????????? ## !! # "" # # """##??? | | ??????? ## # S"" # # """##??? | | ???????##+##### " + "" #### """##??? | | ??????? # T # #### ##??? | | ????????????? # " ###################??? | | ????????????? # ###################??? | +----------------------------------------------------+ Best States ------------- Heat Dissipation 28 Energy Generation 10 Energy Capacity 250 Matter Stores 300 Matter Capacity 300 Sight Range 16 Robot Scan Range 14 Terrain Scan Density 10 Evasion (%) 64 Recoil Reduction 2 Offensive Hacking 10 Item Schematics ----------------- None Robot Schematics ------------------ None Fabricated ------------ Nothing Repaired ---------- Nothing Alien Tech Used ----------------- None Achievements -------------- None Challenges ------------ None Game ------ Seed AdvancedTransmissionRouter Manual? 0 Play Time 00:22:47 Cumulative 64.8 hours Start 2025.05.09 @ 01:28:57 End 2025.05.09 @ 01:47:28 Sessions 1 Manual Loads 0 Difficulty Rogue Special Mode None Game No. 82 Rogue 82 Adventurer 0 Explorer 0 Win Type - Total 0 Types 0/0/0/0/0/0/0/0/0/0 Lore% 23 Gallery% 40 Achievement% 38 Wizard Run 0 Options --------- Layout 1 ASCII 0 Keyboard 0 Movement Mouse Keybinds 0 Fullscreen 1 Font 32/SmallcapsGlow Map View 77x35 Zoom Use 0% Tactical HUD 1 Map Filters NONE Filters NONE Steam 1 RUN: de410d1e-4a8e-4a53-a599-792fc424910a